bitfinex-derivatives/quotes_BTCF0:USTF0_20251230
["timestamp","ask_amount","ask_price","bid_price","bid_amount"]
[1767092686456,0.057,87979.0,87966.0,0.057]
[1767092697173,0.057,87979.0,87966.0,0.0683824]
[1767092697369,0.15383283,87990.0,87968.0,0.0113822]
[1767092697574,0.0113805,87982.0,87966.0,0.057]
[1767092698269,0.02631873,87981.0,87966.0,0.057]
[1767092698475,0.02631873,87980.0,87966.0,0.057]
[1767092698675,0.08327873,87979.0,87966.0,0.057]
[1767092698972,0.02631873,87978.0,87966.0,0.0683825]
[1767092701173,0.02631873,87978.0,87966.0,0.057]
[1767092704177,0.05696,87979.0,87967.0,0.0113824]
[1767092704477,0.05696,87979.0,87966.0,0.057]
[1767092704980,0.05696,87979.0,87966.0,0.0683825]
[1767092705174,0.0683409,87979.0,87966.0,0.0683825]
[1767092707182,0.05696,87979.0,87966.0,0.0683825]
[1767092707480,0.05696,87979.0,87966.0,0.057]
[1767092708767,0.0113802,87985.0,87966.0,0.057]
[1767092708974,0.0113797,87988.0,87973.0,0.0113816]
[1767092709175,0.15368,87985.0,87973.0,0.0113816]
[1767092709374,0.05696,87984.0,87975.0,0.0113813]
[1767092709681,0.05696,87984.0,87971.0,0.0113818]
[1767092709885,0.00227279,87998.0,87966.0,0.057]
[1767092709886,0.05696,87985.0,87975.0,0.0113814]
[1767092710179,0.05696,87986.0,87975.0,0.0113814]
[1767092710381,0.00227279,87998.0,87972.0,0.05696]
[1767092710769,0.15368,87997.0,87972.0,0.05696]
[1767092710973,0.00017046,87993.0,87976.0,0.00017046]
[1767092711274,0.00017046,87993.0,87979.0,0.0113807]
[1767092711874,0.05696,87995.0,87978.0,0.05696]
[1767092711875,0.01365119,87998.0,87981.0,0.0113805]
[1767092712070,0.05696,87997.0,87983.0,0.0113803]
[1767092713686,0.05696,87997.0,87985.0,0.01138]
[1767092714279,0.05696,87997.0,87982.0,0.0113804]
[1767092714986,0.05696,87997.0,87984.0,0.0113801]
[1767092717286,0.05923279,87998.0,87984.0,0.0113801]
[1767092717583,0.02614538,87997.0,87984.0,0.0113801]
[1767092717787,0.00227279,87998.0,87978.0,0.05696]
[1767092718479,0.02614189,87997.0,87978.0,0.05696]
[1767092718680,0.00227279,87998.0,87978.0,0.05696]
[1767092718880,2.79e-06,87998.0,87987.0,0.0113798]
[1767092719080,3.25e-06,87999.0,87991.0,0.0113792]
[1767092720375,3.25e-06,87999.0,87993.0,0.0113789]
[1767092720583,3.25e-06,87999.0,87986.0,0.05696]
[1767092720584,3.25e-06,87999.0,87991.0,0.0113792]
[1767092721286,0.1080968,88011.0,87986.0,0.05696]
[1767092721486,0.011377,88009.0,87994.0,0.0113789]
[1767092723091,0.00017046,88010.0,87993.0,0.00017046]
[1767092723092,0.01154736,88010.0,87993.0,0.00017046]
[1767092723591,0.00017046,88010.0,87993.0,0.00017046]
[1767092724192,0.0113778,88003.0,87993.0,0.00017046]
[1767092728499,0.0113774,88006.0,87993.0,0.00017046]
[1767092732901,0.011377,88009.0,87994.0,0.0113789]
[1767092733101,0.02600466,88008.0,87994.0,0.0113789]
[1767092733297,0.011377,88009.0,87994.0,0.0113789]
[1767092736808,0.0113773,88007.0,87994.0,0.0113789]
[1767092737807,0.0113773,88007.0,87993.0,0.00017046]
[1767092740311,0.02601515,88006.0,87993.0,0.00017046]
[1767092740507,0.0113773,88007.0,87993.0,0.01154946]
[1767092740708,0.02572038,88006.0,87993.0,0.01154946]
[1767092740910,0.0113773,88007.0,87993.0,0.01154946]
[1767092741209,0.02572038,88006.0,87993.0,0.01154946]
[1767092741508,0.0113773,88007.0,87993.0,0.01154946]
[1767092741712,0.02572308,88006.0,87995.0,0.0113787]
[1767092741914,0.00017046,88010.0,87995.0,0.0113787]
[1767092742212,0.02572317,88009.0,87995.0,0.0113787]
[1767092742412,0.02572317,88008.0,87995.0,0.0113787]
[1767092742613,0.02572317,88007.0,87995.0,0.0113787]
[1767092742813,0.02572317,88006.0,87997.0,0.0113785]
[1767092743013,0.00017046,88010.0,87997.0,0.0113785]
[1767092743214,0.02572545,88009.0,87995.0,0.0113787]
[1767092743513,0.02572545,88008.0,87993.0,0.00017046]
[1767092743711,0.03710275,88007.0,87993.0,0.00017046]
[1767092743902,0.02572545,88006.0,87993.0,0.00017046]
[1767092744106,0.0113775,88005.0,87993.0,0.00017046]
[1767092746010,0.0113786,87997.0,87973.0,0.08174522]
[1767092746315,0.00017046,88010.0,87976.0,0.11363765]
[1767092746505,0.0113786,87997.0,87979.0,0.0113807]
[1767092747014,0.01154906,87997.0,87981.0,0.0113805]
[1767092748218,0.01154906,87997.0,87983.0,0.0113803]
[1767092748517,0.01154906,87997.0,87984.0,0.09668]
[1767092748910,0.01154906,87997.0,87984.0,0.15364]
[1767092749219,0.00017046,87997.0,87985.0,0.01138]
[1767092752320,0.00017046,87997.0,87988.0,0.0113796]
[1767092756023,0.00017046,87997.0,87985.0,0.0113801]
[1767092756718,0.00017046,87997.0,87984.0,0.15364]
[1767092757220,0.00017046,87997.0,87979.0,0.00017046]
[1767092757419,0.12246341,87996.0,87977.0,0.05696]
[1767092757620,0.12246341,87996.0,87976.0,0.05696]
[1767092757621,0.02574341,87995.0,87976.0,0.05696]
[1767092757924,0.02574341,87994.0,87976.0,0.05696]
[1767092758122,0.02574341,87993.0,87976.0,0.05696]
[1767092758325,0.02574341,87992.0,87976.0,0.05696]
[1767092758517,0.0113797,87989.0,87976.0,0.05696]
[1767092760526,0.15379778,87986.0,87975.0,0.00017046]
[1767092760831,0.15379778,87986.0,87968.0,0.00227357]
[1767092761018,0.15379778,87981.0,87968.0,0.00227357]
[1767092761520,0.16517838,87981.0,87968.0,0.00227357]
[1767092761715,0.15379778,87981.0,87968.0,0.00227357]
[1767092768130,0.15379778,87980.0,87968.0,0.00227357]
[1767092775343,0.16517858,87980.0,87966.0,0.06851296]
[1767092775530,0.15379778,87974.0,87964.0,0.09672]
[1767092775730,0.15379778,87974.0,87964.0,0.07172]
[1767092776841,0.0113811,87977.0,87964.0,0.07172]
[1767092777643,0.0113817,87973.0,87960.0,0.00017046]
[1767092777842,0.15379778,87970.0,87960.0,0.00017046]
[1767092778939,0.15379778,87970.0,87961.0,0.0113832]
[1767092779338,0.05696,87974.0,87961.0,0.0113832]
[1767092779534,0.15379778,87971.0,87961.0,0.0113832]
[1767092780738,0.15379778,87971.0,87960.0,0.00017046]
[1767092780739,0.0113823,87968.0,87940.0,0.08174522]
[1767092780929,0.0113823,87968.0,87952.0,0.0113842]
[1767092781240,0.15379778,87970.0,87954.0,0.0113841]
[1767092781439,0.15379778,87970.0,87954.0,0.0683441]
[1767092783051,0.15379778,87970.0,87956.0,0.0113837]
[1767092783250,0.0113819,87971.0,87956.0,0.0113837]
[1767092783251,0.15379778,87966.0,87956.0,0.0113837]
[1767092784050,0.15379778,87966.0,87955.0,0.0113839]
[1767092784245,0.15379778,87966.0,87954.0,0.05696]
[1767092784246,0.15379778,87970.0,87957.0,0.0113836]
[1767092786358,0.0113817,87973.0,87959.0,0.0113834]
[1767092786556,0.15379778,87970.0,87959.0,0.0113834]
[1767092787451,0.15379778,87970.0,87956.0,0.0113837]
[1767092788959,0.15379778,87970.0,87958.0,0.0113835]
[1767092789159,0.05696,87969.0,87955.0,0.0113838]
[1767092790155,0.05696,87969.0,87957.0,0.0113837]
[1767092793763,0.15379778,87967.0,87949.0,0.05696]
[1767092793961,0.05696,87969.0,87949.0,0.05696]
[1767092793962,0.15379778,87959.0,87949.0,0.05696]
[1767092794166,0.05696,87958.0,87945.0,0.0113851]
[1767092794356,0.05696,87958.0,87947.0,0.011385]
[1767092794357,0.15379778,87953.0,87947.0,0.011385]
[1767092794557,0.15379778,87957.0,87947.0,0.011385]
[1767092795560,0.05696,87958.0,87947.0,0.011385]
[1767092795762,0.15379778,87957.0,87944.0,0.0113853]
[1767092795962,0.15379778,87953.0,87944.0,0.0113853]
[1767092796465,0.15379778,87953.0,87941.0,0.0683457]
[1767092797260,0.15379778,87953.0,87941.0,0.05696]
[1767092797666,0.21075778,87953.0,87941.0,0.05696]
[1767092798267,0.00017046,87960.0,87941.0,0.05696]
[1767092798469,0.05696006,87960.0,87950.0,0.15379778]
[1767092798664,0.04557682,87960.0,87943.0,0.0113855]
[1767092798864,0.04557682,87960.0,87941.0,0.05696]
[1767092799064,0.1993746,87960.0,87947.0,0.0113849]
[1767092799768,0.1993746,87960.0,87945.0,0.00017046]
[1767092800267,0.1993746,87960.0,87946.0,0.0113851]
[1767092802762,0.1993746,87960.0,87948.0,0.0113848]
[1767092802963,0.1993746,87960.0,87945.0,0.00017046]
[1767092803669,0.1993746,87960.0,87950.0,0.0113846]
[1767092805066,0.1993746,87960.0,87952.0,0.0113843]
[1767092805263,0.0113817,87973.0,87956.0,0.0113838]
[1767092805465,0.15379778,87970.0,87956.0,0.0113838]
[1767092805669,0.15379778,87970.0,87956.0,0.0113837]
[1767092806269,0.15379778,87970.0,87958.0,0.0113835]
[1767092806470,0.02571041,87969.0,87958.0,0.0113835]
[1767092806670,0.15379778,87970.0,87958.0,0.0113835]
[1767092806867,0.08267184,87969.0,87955.0,0.0113839]
[1767092807057,0.05696,87969.0,87955.0,0.0113839]
[1767092807868,0.05696,87968.0,87960.0,0.0113833]
[1767092808273,0.05696,87971.0,87951.0,0.05696]
[1767092808461,0.17951682,87970.0,87951.0,0.05696]
[1767092808765,0.05696,87971.0,87951.0,0.17064545]
[1767092808964,6e-08,87972.0,87960.0,0.15379778]
[1767092809265,6e-08,87972.0,87963.0,0.0113828]
[1767092810468,6e-08,87972.0,87960.0,0.0683433]
[1767092811875,6e-08,87972.0,87962.0,0.011383]
[1767092812866,6e-08,87972.0,87968.0,0.0113822]
[1767092816168,6e-08,87972.0,87960.0,0.21075778]
[1767092816169,6e-08,87972.0,87970.0,0.0113819]
[1767092818680,6e-08,87972.0,87969.0,0.0113821]
[1767092820070,6e-08,87972.0,87966.0,0.0113825]
[1767092821381,6e-08,87972.0,87968.0,0.0113822]
[1767092821778,6e-08,87972.0,87969.0,0.011382]
[1767092823779,6e-08,87972.0,87966.0,0.0113825]
[1767092827190,6e-08,87972.0,87961.0,0.0113832]
[1767092827772,6e-08,87972.0,87941.0,0.08174522]
[1767092827972,0.0113835,87959.0,87945.0,0.09689046]
[1767092828576,0.15368,87971.0,87945.0,0.09689046]
[1767092828773,0.0113846,87951.0,87945.0,0.09689046]
[1767092829274,0.0113846,87951.0,87942.0,0.05696]
[1767092829478,0.09672,87961.0,87942.0,0.05696]
[1767092829479,0.0113841,87955.0,87942.0,0.05696]
[1767092830573,0.0113843,87953.0,87942.0,0.05696]
[1767092834585,0.0113839,87956.0,87942.0,0.05696]
[1767092835389,0.09672,87961.0,87942.0,0.05696]
[1767092835590,0.0113846,87951.0,87942.0,0.05696]
[1767092836389,0.0113841,87955.0,87942.0,0.05696]
[1767092836592,0.0113843,87953.0,87942.0,0.05696]
[1767092837593,0.0113839,87956.0,87942.0,0.05696]
[1767092838593,0.0113835,87959.0,87942.0,0.05696]
[1767092838782,0.05696,87960.0,87942.0,0.05696]
[1767092841591,0.0113838,87957.0,87942.0,0.05696]
[1767092841991,0.011384,87955.0,87942.0,0.05696]
[1767092845191,0.0113842,87953.0,87942.0,0.05696]
[1767092846794,0.05696,87960.0,87942.0,0.05696]
[1767092847892,0.0113844,87952.0,87942.0,0.05696]
[1767092848096,0.0113844,87952.0,87940.0,0.00017056]
[1767092848899,0.05696,87960.0,87940.0,0.00017056]
[1767092849198,0.0259574,87959.0,87940.0,0.00017056]
[1767092849393,0.0259574,87958.0,87940.0,0.00017056]
[1767092849595,0.0259574,87957.0,87940.0,0.00017056]
[1767092849795,0.0259574,87956.0,87940.0,0.00017056]
[1767092849995,0.0259574,87955.0,87940.0,0.00017056]
[1767092850196,0.05696,87960.0,87940.0,0.00017056]
[1767092850395,0.0113845,87951.0,87940.0,0.00017056]
[1767092851299,0.00017056,87954.0,87940.0,0.00017056]
[1767092852196,0.00017056,87954.0,87945.0,0.0113852]
[1767092855403,0.05696,87960.0,87945.0,0.0113852]
[1767092855601,0.02599221,87959.0,87945.0,0.0113852]
[1767092855800,0.08295221,87958.0,87945.0,0.0113852]
[1767092855998,0.05696,87967.0,87944.0,0.05696]
[1767092856205,0.15372,87967.0,87944.0,0.05696]
[1767092856401,0.04514075,87981.0,87953.0,0.0113841]
[1767092856402,0.0113821,87970.0,87953.0,0.0113841]
[1767092856608,0.0113821,87970.0,87953.0,0.01155466]
[1767092857007,0.15372,87972.0,87953.0,0.00017056]
[1767092857605,0.00017056,87971.0,87953.0,0.00017056]
[1767092858310,0.0113821,87970.0,87953.0,0.00017056]
[1767092860609,0.00017056,87971.0,87953.0,0.00017056]
[1767092861011,0.00017056,87971.0,87959.0,0.0113834]
[1767092861614,0.00017056,87971.0,87961.0,0.0113831]
[1767092864318,0.00017056,87971.0,87958.0,0.0113835]
[1767092864719,0.0113813,87976.0,87954.0,0.05696]
[1767092865721,0.00017056,87974.0,87954.0,0.05696]
[1767092867317,0.01155216,87974.0,87958.0,0.0113835]
[1767092868023,0.02578736,87973.0,87958.0,0.0113835]
[1767092868223,0.0113818,87972.0,87954.0,0.068344]
[1767092868624,0.0113818,87972.0,87956.0,0.0113838]
[1767092869225,0.0113821,87970.0,87954.0,0.05696]
[1767092870122,0.0113824,87968.0,87954.0,0.05696]
[1767092870322,0.0113816,87973.0,87953.0,0.00017056]
[1767092870520,0.0113829,87963.0,87953.0,0.00017056]
[1767092871125,0.0113826,87966.0,87953.0,0.00017056]
[1767092874431,0.05696,87968.0,87953.0,0.00017056]
[1767092874623,0.011383,87963.0,87953.0,0.00017056]
[1767092879329,0.05696,87968.0,87953.0,0.00017056]
[1767092879330,0.0113826,87966.0,87953.0,0.00017056]
[1767092879534,0.05696,87969.0,87953.0,0.00017056]
[1767092879931,0.011383,87963.0,87953.0,0.00017056]
[1767092880533,0.0113833,87960.0,87953.0,0.00017056]
[1767092882330,0.05696,87969.0,87953.0,6e-08]
[1767092882534,0.011384,87955.0,87953.0,6e-08]
[1767092882737,0.011384,87955.0,87946.0,0.15372]
[1767092889132,0.15387666,87956.0,87942.0,0.00017056]
[1767092889339,0.15387666,87952.0,87942.0,0.00017056]
[1767092890537,0.00017056,87956.0,87942.0,0.00017056]
[1767092891030,0.00017056,87956.0,87943.0,0.0113855]
[1767092892148,0.15387666,87970.0,87948.0,0.0113848]
[1767092892442,0.02584416,87969.0,87950.0,0.15387666]
[1767092892743,0.02584416,87968.0,87957.0,0.0113836]
[1767092892943,0.0113815,87974.0,87959.0,0.0113834]
[1767092893135,0.02584633,87973.0,87959.0,0.0113834]
[1767092893336,0.02584633,87972.0,87959.0,0.0113834]
[1767092893533,0.02584633,87971.0,87959.0,0.0113834]
[1767092893732,0.02584633,87970.0,87959.0,0.0113834]
[1767092893946,0.02584633,87969.0,87959.0,0.0113834]
[1767092894146,0.0113815,87974.0,87959.0,0.0113834]
[1767092894336,0.02584609,87973.0,87959.0,0.0113834]
[1767092894541,0.03722789,87972.0,87958.0,0.0113835]
[1767092894742,0.02584609,87971.0,87958.0,0.0113835]
[1767092895647,0.02584609,87970.0,87958.0,0.0113835]
[1767092895947,0.02584609,87969.0,87950.0,0.15387666]
[1767092896135,0.02584609,87968.0,87959.0,0.0113834]
[1767092896336,0.06851196,87975.0,87959.0,0.0113834]
[1767092896536,0.02584831,87974.0,87959.0,0.0113834]
[1767092896741,0.02584831,87973.0,87959.0,0.0113834]
[1767092897047,0.02584831,87972.0,87959.0,0.0113834]
[1767092897346,0.02584831,87971.0,87961.0,0.0113831]
[1767092897537,0.02584831,87970.0,87963.0,0.0113829]
[1767092897736,0.00017056,87975.0,87963.0,0.0113829]
[1767092897936,0.02584965,87974.0,87963.0,0.0113829]
[1767092898137,0.02584965,87973.0,87963.0,0.0113829]
[1767092898348,0.02584965,87972.0,87963.0,0.0113829]
[1767092898539,0.00017056,87975.0,87963.0,0.0113829]
[1767092898744,0.02585543,87974.0,87963.0,0.0113829]
[1767092898946,0.02585543,87973.0,87963.0,0.0113829]
[1767092899244,0.02585543,87972.0,87963.0,0.0113829]
[1767092899445,0.00017056,87975.0,87963.0,0.0113829]
[1767092899646,0.02585721,87974.0,87963.0,0.0113829]
[1767092899939,0.02585721,87973.0,87963.0,0.0113829]
[1767092900144,0.02585721,87972.0,87963.0,0.0113829]
[1767092900445,0.00017056,87975.0,87963.0,0.0113829]
[1767092900645,0.02585752,87974.0,87959.0,0.0113834]
[1767092900947,0.02585752,87973.0,87959.0,0.0113834]
[1767092901245,0.02585752,87972.0,87959.0,0.0113834]
[1767092901442,0.01155196,87975.0,87959.0,0.0113834]
[1767092901644,0.02585666,87974.0,87959.0,0.0113834]
[1767092901945,0.02585666,87973.0,87961.0,0.0113831]
[1767092902143,0.02585666,87972.0,87961.0,0.0113831]
[1767092902344,0.00017056,87975.0,87961.0,0.0113831]
[1767092902545,0.02585548,87974.0,87961.0,0.0113831]
[1767092902845,0.02585548,87973.0,87961.0,0.0113831]
[1767092903049,0.00017056,87975.0,87961.0,0.0113831]
[1767092903246,0.02585564,87974.0,87961.0,0.0113831]
[1767092903447,0.02585564,87973.0,87961.0,0.0113831]
[1767092903647,0.01155196,87975.0,87961.0,0.0113831]
[1767092903847,0.0258544,87974.0,87961.0,0.0113831]
[1767092904044,0.0258544,87973.0,87961.0,0.0113831]
[1767092904248,0.01155196,87975.0,87961.0,0.0113831]
[1767092904454,0.02585354,87974.0,87961.0,0.0113831]
[1767092904753,0.02585354,87973.0,87961.0,0.0113831]
[1767092904953,0.01155196,87975.0,87961.0,0.0113831]
[1767092905148,0.01155196,87975.0,87958.0,0.00017056]
[1767092905149,0.0113821,87970.0,87958.0,0.00017056]
[1767092905354,0.15387666,87971.0,87958.0,0.00017056]
[1767092905555,0.16525866,87971.0,87958.0,0.00017056]
[1767092910871,0.15387666,87971.0,87958.0,0.01155406]
[1767092912071,0.05696,87973.0,87960.0,0.0113832]
[1767092912278,0.05696,87973.0,87962.0,0.011383]
[1767092912572,0.00017056,87975.0,87962.0,0.011383]
[1767092912772,0.00017056,87975.0,87965.0,0.0113826]
[1767092913069,0.00017056,87975.0,87967.0,0.0113823]
[1767092916072,0.00017056,87975.0,87969.0,0.0113821]
[1767092918270,0.00017056,87975.0,87960.0,0.15387666]
[1767092918475,0.00017056,87975.0,87966.0,0.0113825]
[1767092926279,0.00017056,87975.0,87967.0,0.0113823]
[1767092926672,0.0113804,87983.0,87967.0,0.0113823]
[1767092926872,0.02577967,87982.0,87967.0,0.0113823]
[1767092927072,0.02577967,87981.0,87967.0,0.0113823]
[1767092927272,0.02577967,87980.0,87967.0,0.0113823]
[1767092927473,0.0113804,87983.0,87967.0,0.0113823]
[1767092927777,0.02578033,87982.0,87970.0,0.15387666]
[1767092927973,0.0113804,87983.0,87960.0,0.15387666]
[1767092929182,0.0113804,87983.0,87967.0,0.0113824]
[1767092930082,0.0113804,87983.0,87969.0,0.0113821]
[1767092930781,0.00011231,87984.0,87969.0,0.0113821]
[1767092931182,0.00011231,87984.0,87959.0,0.15368]
[1767092931183,0.00011231,87984.0,87970.0,0.15387666]
[1767092931385,0.00011231,87984.0,87978.0,0.0113809]
[1767092931775,0.19827403,88000.0,87970.0,0.09672]
[1767092931776,0.15387666,88000.0,87970.0,0.09672]
[1767092932083,0.15368,87997.0,87972.0,0.0113816]
[1767092932286,0.15368,87997.0,87986.0,0.0113799]
[1767092932579,0.05696,88000.0,87981.0,0.0113805]
[1767092932779,0.05696,88000.0,87990.0,0.0113794]
[1767092932977,0.05696,88000.0,87992.0,0.0113791]
[1767092933177,0.05696,88000.0,87982.0,0.00017056]
[1767092933374,0.05691,88000.0,87991.0,0.0113792]
[1767092934281,0.05691,88000.0,87993.0,0.011379]
[1767092935285,0.05691,88000.0,87982.0,0.00017056]
[1767092935587,0.05691,88000.0,87992.0,0.0113791]
[1767092936080,0.09672,88002.0,87984.0,0.0113802]
[1767092936286,0.04439261,88013.0,87984.0,0.0113802]
[1767092936287,0.04439261,88013.0,88002.0,0.0113777]
[1767092936474,0.05696,88012.0,87990.0,0.15387666]
[1767092936680,1e-08,88013.0,87994.0,0.0113788]
[1767092936888,0.05700001,88013.0,88006.0,0.0113773]
[1767092937082,0.38800452,88016.0,88001.0,0.00017046]
[1767092937083,0.15387666,88016.0,88001.0,0.00017046]
[1767092937287,0.16525346,88011.0,87989.0,0.0113795]
[1767092937485,0.15387666,87999.0,87976.0,0.0113811]
[1767092937685,0.15387666,87999.0,87988.0,0.0113796]
[1767092937686,0.21087666,87999.0,87988.0,0.0113796]
[1767092938291,0.21087666,87999.0,87990.0,0.0113793]
[1767092938481,6e-08,87999.0,87985.0,0.00017046]
[1767092938681,0.09689013,88002.0,87985.0,0.00017046]
[1767092938682,0.15387666,88000.0,87985.0,0.00017046]
[1767092938881,0.05537544,88002.0,87985.0,0.00017046]
[1767092939078,0.057,88005.0,87985.0,0.00017046]
[1767092939390,0.057,88007.0,87998.0,0.0113783]
[1767092940187,0.057,88007.0,88000.0,0.011378]
[1767092940381,0.0113751,88024.0,87990.0,0.15387666]
[1767092940688,0.15387666,88020.0,88006.0,0.0113773]
[1767092940885,0.15387666,88016.0,88004.0,0.00017046]
[1767092941085,0.15387666,88014.0,88004.0,4.6e-07]
[1767092941292,0.15387666,88014.0,88000.0,0.0113781]
[1767092941490,0.15387666,88010.0,88002.0,0.0113778]
[1767092941690,6e-08,88010.0,87990.0,0.15372]
[1767092941889,6e-08,88010.0,87994.0,0.0113789]
[1767092942191,6e-08,88010.0,88001.0,0.0113779]
[1767092942382,6e-08,88010.0,88003.0,0.0113777]
[1767092942582,0.00017046,88011.0,88003.0,0.0113777]
[1767092942984,6e-08,88011.0,88005.0,0.0113774]
[1767092943186,6e-08,88011.0,88002.0,0.0113778]
[1767092943492,6e-08,88011.0,88004.0,0.0113775]
[1767092943887,6e-08,88011.0,88001.0,0.0113779]
[1767092944494,6e-08,88011.0,88005.0,0.0113774]
[1767092944888,6e-08,88011.0,88002.0,0.0113779]
[1767092945791,6e-08,88011.0,88004.0,0.0113775]
[1767092945992,0.057,88015.0,87993.0,0.00017046]
[1767092945993,6e-08,88015.0,88011.0,0.0113766]
[1767092946296,6e-08,88015.0,88013.0,0.0113764]
[1767092946890,0.057,88023.0,88015.0,0.0113761]
[1767092947484,0.057,88023.0,88017.0,0.0113759]
[1767092947786,0.08177841,88064.0,88003.0,0.0113776]
[1767092947787,2e-08,88028.0,88022.0,0.0113752]
[1767092947983,2e-08,88028.0,88024.0,0.011375]
[1767092948186,2e-08,88030.0,88024.0,0.011375]
[1767092948387,0.0113729,88041.0,88009.0,0.0113769]
[1767092948388,0.057,88029.0,88018.0,0.00017046]
[1767092949200,0.057,88029.0,88022.0,0.0113753]
[1767092949597,0.057,88031.0,88024.0,0.0113749]
[1767092949985,0.057,88031.0,88018.0,0.00017046]
[1767092950704,0.057,88031.0,88025.0,0.0113748]
[1767092950899,0.057,88032.0,88025.0,0.0113748]
[1767092951396,0.057,88032.0,88018.0,0.00017046]
[1767092952198,0.057,88032.0,88024.0,0.011375]
[1767092953397,0.09668,88043.0,88019.0,0.0113756]
[1767092953598,0.057,88051.0,88034.0,0.0113736]
[1767092953899,0.057,88050.0,88036.0,0.0113735]
[1767092954094,0.057,88050.0,88034.0,0.00017036]
[1767092954095,0.057,88050.0,88040.0,0.0113728]
[1767092954305,0.0113702,88062.0,88041.0,0.0113727]
[1767092954500,0.15368,88061.0,88041.0,0.0113727]
[1767092954703,0.0113705,88060.0,88041.0,0.0113727]
[1767092955001,0.15368,88061.0,88038.0,0.0113732]
[1767092955002,0.0113707,88058.0,88038.0,0.0113732]
[1767092958901,0.15368,88061.0,88038.0,0.0113732]
[1767092959197,0.0113708,88057.0,88034.0,0.00017036]
[1767092959404,0.0113708,88057.0,88039.0,0.011373]
[1767092962301,0.0113208,88057.0,88039.0,0.011373]
[1767092963210,0.15368,88061.0,88034.0,0.00017036]
[1767092963504,0.0113704,88060.0,88035.0,0.01135]
[1767092963712,0.011374,88032.0,88014.0,0.1080562]
[1767092963920,0.011374,88032.0,88014.0,0.0113762]
[1767092964114,0.057,88036.0,88016.0,0.011376]
[1767092964608,0.0113737,88035.0,88016.0,0.011376]
[1767092964913,0.00017001,88034.0,88017.0,0.00017036]
[1767092965101,0.00017001,88034.0,88021.0,0.0113754]
[1767092966412,0.00017001,88034.0,88018.0,0.0113757]
[1767092971014,0.00017001,88034.0,88020.0,0.0113755]
[1767092972124,0.00017001,88034.0,88022.0,0.0113752]
[1767092973710,0.057,88042.0,88017.0,0.00017036]
[1767092973911,0.02538541,88041.0,88017.0,0.00017036]
[1767092974112,0.02538541,88040.0,88024.0,0.011375]
[1767092974311,0.02538541,88039.0,88024.0,0.011375]
[1767092974511,0.02538541,88038.0,88024.0,0.011375]
[1767092974815,0.02538541,88037.0,88024.0,0.011375]
[1767092975006,0.02538541,88036.0,88024.0,0.011375]
[1767092975205,0.02538541,88035.0,88024.0,0.011375]
[1767092975513,0.0683727,88042.0,88017.0,0.00017036]
[1767092976211,0.0113722,88046.0,88028.0,0.0113744]
[1767092976412,0.0113722,88046.0,88028.0,0.01154476]
[1767092977003,0.0113728,88042.0,88028.0,0.00017036]
[1767092977214,0.0113724,88045.0,88028.0,0.00017036]
[1767092978315,0.0113726,88043.0,88028.0,0.00017036]
[1767092978516,0.057,88050.0,88028.0,0.00017036]
[1767092978709,0.0113735,88036.0,88028.0,3.6e-07]
[1767092979014,0.0113735,88036.0,88020.0,0.09668]
[1767092979404,0.0113735,88036.0,88028.0,1.56562274]
[1767092981315,0.00017,88048.0,88023.0,0.01154546]
[1767092981516,0.0113728,88042.0,88025.0,0.0113748]
[1767092983215,0.0113724,88045.0,88023.0,0.00017036]
[1767092983411,0.0113724,88045.0,88029.0,0.0113744]
[1767092985317,0.057,88047.0,88023.0,0.00017036]
[1767092985515,0.057,88047.0,88034.0,0.0113736]
[1767092985714,0.00017,88048.0,88031.0,0.09668]
[1767092987216,0.00017,88048.0,88037.0,0.0113732]
[1767092989021,0.02521601,88047.0,88037.0,0.0113732]
[1767092989214,0.02521601,88046.0,88037.0,0.0113732]
[1767092989414,0.00017,88048.0,88037.0,0.0113732]
[1767092989415,0.02521601,88045.0,88037.0,0.0113732]
[1767092989619,0.00017,88048.0,88037.0,0.0113732]
[1767092989817,0.02521657,88047.0,88037.0,0.0113732]
[1767092990016,0.02521657,88046.0,88037.0,0.0113732]
[1767092990317,0.00017,88048.0,88037.0,0.0113732]
[1767092990515,0.02521708,88047.0,88031.0,0.09668]
[1767092990723,0.02521708,88046.0,88031.0,0.09668]
[1767092990916,0.02521708,88045.0,88031.0,0.09668]
[1767092991117,0.02521708,88044.0,88031.0,0.09668]
[1767092991419,0.0113721,88047.0,88032.0,0.15368]
[1767092991617,0.0113723,88045.0,88032.0,0.15368]
[1767092991819,0.0252195,88044.0,88032.0,0.15368]
[1767092992018,0.0113723,88045.0,88032.0,0.15368]
[1767092992221,0.02521948,88044.0,88032.0,0.15368]
[1767092992419,0.0113723,88045.0,88032.0,0.15368]
[1767092992720,0.02522069,88044.0,88032.0,0.15368]
[1767092992922,0.0113723,88045.0,88032.0,0.15368]
[1767092993114,0.02522069,88044.0,88032.0,0.15368]
[1767092993314,0.0113723,88045.0,88032.0,0.15368]
[1767092993514,0.02522196,88044.0,88032.0,0.15368]
[1767092993722,0.0113723,88045.0,88032.0,0.15368]
[1767092993921,0.02522196,88044.0,88032.0,0.15368]
[1767092994221,0.0113723,88045.0,88032.0,0.15368]
[1767092994421,0.0252222,88044.0,88032.0,0.15368]
[1767092994624,0.0113723,88045.0,88032.0,0.15368]
[1767092994821,0.0252222,88044.0,88032.0,0.15368]
[1767092995021,0.0113723,88045.0,88032.0,0.15368]
[1767092995223,0.0252222,88044.0,88032.0,0.15368]
[1767092995426,0.0113723,88045.0,88033.0,0.01135]
[1767092995617,0.02522274,88044.0,88033.0,0.01135]
[1767092995818,0.0113723,88045.0,88033.0,0.01135]
[1767092996018,0.02522274,88044.0,88033.0,0.01135]
[1767092996218,0.0113723,88045.0,88033.0,0.01135]
[1767092996418,0.02522274,88044.0,88033.0,0.01135]
[1767092996720,0.0113723,88045.0,88033.0,0.01135]
[1767092996921,0.02522328,88044.0,88033.0,0.01135]
[1767092997126,0.0113723,88045.0,88033.0,0.01135]
[1767092997329,0.0113726,88043.0,88033.0,0.01135]
[1767092997525,0.02522435,88042.0,88032.0,0.09668]
[1767092997726,0.0113726,88043.0,88028.0,0.057]
[1767092997929,0.02522437,88042.0,88023.0,0.00017036]
[1767092998127,0.02522506,88041.0,88024.0,0.057]
[1767092998328,0.02522675,88040.0,88024.0,0.057]
[1767092998526,0.0113731,88039.0,88024.0,0.057]
[1767092998732,0.0113734,88037.0,88024.0,0.057]
[1767092998931,0.011373,88040.0,88024.0,0.057]
[1767093000331,0.011373,88040.0,88024.0,0.068375]
[1767093001535,0.011373,88040.0,88024.0,0.057]
[1767093002639,0.16498611,88040.0,88024.0,0.057]
[1767093007237,0.02542046,88039.0,88024.0,0.057]
[1767093007440,0.16498611,88040.0,88024.0,0.057]